Cogmind - Beta 15 @@@ ROGUE MODE // 2025.08.30 @ 16:22:22 Player: Sasha Result: Destroyed by B-75 Beast with Magnetic Acceleration Cannon Performance ------------- Evolutions (1) 500 Regions Visited (6) 1200 Robots Destroyed (17) 85 Value Destroyed (337) 337 Prototype IDs (4) 80 Alien Tech Used (0) 0 Bonus (600) 600 TOTAL SCORE: 2802 Bonus ------- Met Imprinter 300 Was Imprinted 300 Cogmind --------- Core Integrity 0/400 Matter 274/300 Energy 29/100 System Corruption 0% Temperature Cool (12) Movement Walking (130) Location -6/Proximity Caves Parts ------- > --- POWER (2) -------- (None) > --- PROPULSION (2) --- Titanium Leg Titanium Leg > --- UTILITY (3) ------ Signal Interpreter Hardened Light Armor Plating Makeshift Hacking Suite > --- WEAPON (2) ------- Beam Rifle > --- INVENTORY (5) ---- Hacking Drone Bay (1/1) Peak State ------------ > --- POWER ------------ Ion Engine Light Antimatter Reactor > --- PROPULSION ------- Titanium Leg Myomer Leg > --- UTILITY ---------- Signal Interpreter Hacking Suite Hacking Drone Bay > --- WEAPON ----------- Beam Rifle Datajack > --- INVENTORY -------- Titanium Leg Titanium Leg Improved Weapon Shielding Makeshift Hacking Suite GAL Module [Rating: 36] Favorites ----------- Power Ion Engine Engine Ion Engine Power Core Light Nuclear Core Reactor Light Antimatter Reactor Propulsion Titanium Leg Treads Light Treads Leg Titanium Leg Utility Signal Interpreter Device Sensor Array Storage Small Storage Unit Processor Signal Interpreter Hackware Hacking Suite Protection Hardened Light Armor Plating Weapon Datajack Energy Gun Beam Rifle Ballistic Gun Assault Rifle Launcher Grenade Launcher Special Melee Weapon Datajack Build | -11 -10 -10 -9 -9 -7 -6 ------- Run | Yrd Mat Min Mat Min Zio Pro Slots Evolved 2 | . . . 2 . . . Power 1 | . . . 1 . . . Propulsion . | . . . . . . . Utility 1 | . . . 1 . . . Weapon . | . . . . . . . Parts Attached 34 | 5 7 2 11 1 4 4 Power 6 | 2 . 1 1 . 2 . Engine 3 | 2 . . 1 . . . Core 2 | . . 1 . . 1 . Reactor 1 | . . . . . 1 . Propulsion 9 | . 2 . 4 . 1 2 Treads 4 | . 2 . 2 . . . Leg 5 | . . . 2 . 1 2 Wheel . | . . . . . . . Hover . | . . . . . . . Flight . | . . . . . . . Utility 10 | 1 4 1 2 . 1 1 Device 3 | . 2 . . . 1 . Storage 2 | 1 1 . . . . . Processor 1 | . 1 . . . . . Hackware 2 | . . . 1 . . 1 Protection 2 | . . 1 1 . . . Artifact . | . . . . . . . Weapon 9 | 2 1 . 4 1 . 1 Energy Gun 3 | 1 . . 1 1 . . Energy Cannon . | . . . . . . . Ballistic Gun 3 | 1 . . 1 . . 1 Ballistic Cannon . | . . . . . . . Launcher 2 | . 1 . 1 . . . Special Weapon . | . . . . . . . Impact Weapon . | . . . . . . . Slashing Weapon . | . . . . . . . Piercing Weapon . | . . . . . . . Special Melee Weapon 1 | . . . 1 . . . Unidentified Prototypes 1 | . . . . . 1 . Parts Lost 6 | . . . . . . 6 Power 2 | . . . . . . 2 Propulsion 2 | . . . . . . 2 Utility . | . . . . . . . Weapon 2 | . . . . . . 2 Highest Loss Streak 6 | . . . . . . 6 To Critical Strikes . | . . . . . . . Average Backups 4 | 3 4 5 4 4 5 4 Power . | . . . . . . . Propulsion 2 | 2 2 2 2 2 2 1 Utility 1 | . . 2 1 1 2 2 Weapon . | . . . . 1 . . Tool/Special . | . . . . . . . Unused Backups 11 | . 2 . 3 1 3 2 Power . | . . . . . . . Propulsion 5 | . 1 . 3 . 1 . Utility 5 | . 1 . . 1 1 2 Weapon 1 | . . . . . 1 . Tool/Special . | . . . . . . . Average Slot Usage (%) 97 | . 91 100 98 100 99 97 Engine 11 | . 14 6 12 22 11 10 Core 5 | . . 7 8 . 8 . Reactor 1 | . . . . . 1 10 Treads 11 | . 27 28 18 . . . Leg 12 | . . . 3 22 21 22 Device 5 | . 6 10 9 . 2 2 Storage 2 | . 11 . . . . . Processor 9 | . 2 14 11 11 11 11 Hackware 7 | . . . 1 11 11 19 Protection 5 | . . 3 10 11 8 . Energy Gun 9 | . 14 6 5 11 11 5 Ballistic Gun 3 | . 3 7 6 . . 5 Launcher 4 | . 11 14 4 . . . Special Melee Weapon 6 | . . . 4 11 11 10 Peak Build Rating 36 | 4 7 11 20 18 36 35 Average Rating 17 | 3 6 8 14 18 22 31 On Entrance 13 | . 4 7 11 18 18 35 Naked Turns . | . . . . . . . Heaviest Build 22 | 12 14 13 19 17 22 22 Greatest Support 42 | 3 40 40 40 34 42 42 Greatest Overweight (x) 3 | 3 3 . 1 . . . Average Overweight (x) . | 1 . . . . . . Largest Inventory Capacity 25 | 8 25 5 5 5 5 5 Average Capacity 5 | 6 7 5 5 5 5 5 Most Carried 8 | 5 8 5 5 5 5 5 Average Carried 4 | 3 4 5 4 4 4 4 Final Capacity 8 | 8 5 5 5 5 5 5 Final Carried 5 | 5 5 5 5 5 5 1 Class Distribution -------------------- 90% | Mutant 9% | Hacker-Mutant Dominant Class ---------------- Mutant | -10/Materials Mutant | -10/Mines Mutant | -9/Materials Mutant | -9/Mines Mutant | -7/Zion Hacker-Mutant | -6/Proximity Caves Resources | -11 -10 -10 -9 -9 -7 -6 ----------- Run | Yrd Mat Min Mat Min Zio Pro Matter Collected 763 | 120 220 13 320 20 30 40 Remotely . | . . . . . . . Salvage Created 387 | . 21 87 259 . . 20 Parts 32 | . 4 7 19 . . 2 Haulers Intercepted . | . . . . . . . Recyclers Shooed . | . . . . . . . Parts Field Recycled . | . . . . . . . Retrieved Matter . | . . . . . . . Parts Self-Destructed 4 | . . . . . 2 2 Prevented . | . . . . . . . Kills | -11 -10 -10 -9 -9 -7 -6 ------- Run | Yrd Mat Min Mat Min Zio Pro Combat Hostiles Destroyed 13 | . 3 2 7 . . 1 Guns 9 | . 1 1 6 . . 1 AOE 4 | . 2 1 1 . . . Classes Destroyed 5 | . 1 2 2 . . . Worker 2 | . . 2 . . . . Builder 2 | . . . 2 . . . Swarmer 7 | . 3 . 3 . . 1 Grunt 5 | . . 2 3 . . . Sentry 1 | . . . 1 . . . Best Kill Streak 5 | . 3 3 5 . . 1 Combat Bots Only 4 | . 3 2 4 . . 1 Max Kills in Single Turn 3 | . 2 1 3 . . 1 Gunslinging . | . . . . . . . Exploded 2 | . 2 1 1 . . . Melee . | . . . . . . . Uniques/NPCs Destroyed . | . . . . . . . Combat | -11 -10 -10 -9 -9 -7 -6 -------- Run | Yrd Mat Min Mat Min Zio Pro Hostile Shots Fired 145 | . 5 10 31 . . 99 Missed 40 | . 1 4 9 . . 26 Hits 105 | . 4 6 22 . . 73 Projectile 105 | . 4 6 22 . . 73 Damage Taken 1519 | . 27 127 244 . . 1121 Core 427 | . . 13 45 . . 369 Absorbed by Shields . | . . . . . . . Core Remaining (%) 97 | 100 . 94 . . . . Volleys Fired 43 | . 3 6 15 . 1 18 Largest 2 | . 2 2 2 . 1 1 Hottest 80 | . 80 80 68 . 56 56 Shots Fired 61 | . 4 13 25 . 1 18 Gun 53 | . 3 7 24 . 1 18 Cannon . | . . . . . . . Launcher 8 | . 1 6 1 . . . Special . | . . . . . . . Kinetic 21 | . . 1 15 . . 5 Thermal 23 | . 3 6 . . 1 13 Explosive 8 | . 1 6 1 . . . Electromagnetic 9 | . . . 9 . . . Robot Hit Streak 8 | . 1 3 8 . 2 2 Robot Miss Streak 10 | . 3 2 2 . . 10 Penetration Max . | . . . . . . . Secondary Targets . | . . . . . . . Shots Hit Robots 39 | . 1 8 23 . 1 6 Core Hits 31 | . 4 8 14 . 1 4 Critical Kills . | . . . . . . . Critical Parts Destroyed . | . . . . . . . Critical Strikes . | . . . . . . . Melee Attacks 3 | . . . 3 . . . Impact . | . . . . . . . Slashing . | . . . . . . . Piercing . | . . . . . . . Sneak Attacks 3 | . . . 3 . . . Combat Hostiles . | . . . . . . . Follow-up Attacks . | . . . . . . . Damage Inflicted 986 | . 104 257 474 . 15 136 Guns 529 | . 12 75 292 . 15 135 Cannons . | . . . . . . . Explosions 456 | . 92 182 182 . . . Melee . | . . . . . . . Ramming 1 | . . . . . . 1 Kinetic 225 | . . 12 165 . . 48 Thermal 177 | . 12 63 . . 15 87 Explosive 456 | . 92 182 182 . . . Electromagnetic 127 | . . . 127 . . . Impact . | . . . . . . . Slashing . | . . . . . . . Piercing . | . . . . . . . Highest Corruption 2 | . 2 2 . . . . Average Corruption 2 | . 2 2 . . . . Corruption Purged . | . . . . . . . Corruption Blocked . | . . . . . . . Effects 22 | . 12 10 . . . . Message Errors 7 | . 4 3 . . . . Matter Fused 3 | . . 3 . . . . Heat Flow Errors 1 | . . 1 . . . . Energy Discharges 3 | . 2 1 . . . . Data Loss (minor) 4 | . 3 1 . . . . Data Loss (major) 1 | . 1 . . . . . Misfires 1 | . . 1 . . . . Alerts 2 | . 2 . . . . . Overload Shots . | . . . . . . . Overflow Damage 9 | . . . 9 . . . Projectiles . | . . . . . . . Explosions 9 | . . . 9 . . . Melee . | . . . . . . . Knockbacks . | . . . . . . . Impact . | . . . . . . . Kinetic . | . . . . . . . Secondary . | . . . . . . . Self-Inflicted Damage 43 | . . 43 . . . . Shots 4 | . . 4 . . . . Rammed . | . . . . . . . Targets Rammed 3 | . . . . . . 3 Kicked 3 | . . . . . . 3 Crushed . | . . . . . . . Highest Temperature 261 | . 38 199 261 . 24 127 Average Temperature 88 | . 20 88 121 . 16 68 Received Heat Transfer 171 | . . 42 81 . . 48 Siege Activations . | . . . . . . . Martial Activations . | . . . . . . . Shielding Activations . | . . . . . . . Robots Disrupted . | . . . . . . . Combat Hostiles . | . . . . . . . Robots Corrupted . | . . . . . . . Combat Hostiles . | . . . . . . . Parts Fried . | . . . . . . . Impact Corruptions . | . . . . . . . Robots Melted . | . . . . . . . Combat Hostiles . | . . . . . . . Parts Melted . | . . . . . . . Heat Transferred 481 | . 37 185 . . 37 222 Parts Sabotaged . | . . . . . . . Parts Stolen . | . . . . . . . Parts Stripped . | . . . . . . . Power Chain Reactions . | . . . . . . . Alert | -11 -10 -10 -9 -9 -7 -6 ------- Run | Yrd Mat Min Mat Min Zio Pro Maximum Alert Level . | . . . . . . . Low Security (%) 100 | 100 100 100 100 100 . . Level 1 . | . . . . . . . Level 2 . | . . . . . . . Level 3 . | . . . . . . . Level 4 . | . . . . . . . Level 5 . | . . . . . . . High Security . | . . . . . . . Max Security . | . . . . . . . Peak Influence 108 | . 108 72 97 20 . . Initial 20 | . . 16 . 20 . . Average 19 | . 17 14 33 4 . . Influence Increases 443 | . 108 87 218 . . 30 Destroy 0b10 Robot/C 260 | . 60 40 140 . . 20 Destroy 0b10 Robot/NC 20 | . . 10 10 . . . Destroy Leader 60 | . 10 10 30 . . 10 Successful Hack 12 | . . . 12 . . . Disable Machine 15 | . 15 . . . . . Destroy Structure 46 | . 8 27 11 . . . Lose Combat Pursuer 30 | . 15 . 15 . . . Influence Decreases 441 | . 64 131 165 53 . 28 Entered New Map 61 | . . 28 . 33 . . Time Decay 360 | . 64 103 165 20 . 8 Lost Part 20 | . . . . . . 20 Squads Dispatched 2 | . 1 . 1 . . . Investigation 1 | . . . 1 . . . Extermination . | . . . . . . . Reinforcement 1 | . 1 . . . . . Assault . | . . . . . . . Garrison . | . . . . . . . Intercept . | . . . . . . . Searches Triggered . | . . . . . . . Construction Impeded . | . . . . . . . Haulers Reinforced . | . . . . . . . Active Scanning Responses . | . . . . . . . Cargo Convoy Interrupts . | . . . . . . . Stealth | -11 -10 -10 -9 -9 -7 -6 --------- Run | Yrd Mat Min Mat Min Zio Pro Distress Signals 2 | . 1 . 1 . . . Communications Jammed . | . . . . . . . Distress Signals . | . . . . . . . Times Spotted 22 | . 4 2 11 . 1 4 Peak Tracking Total 4 | . 4 2 4 . 1 4 Tactical Retreats 2 | . 1 . 1 . . . Traps | -11 -10 -10 -9 -9 -7 -6 ------- Run | Yrd Mat Min Mat Min Zio Pro Traps Triggered 2 | . 1 . 1 . . . Indirectly . | . . . . . . . Trap Hack Attempts . | . . . . . . . Triggered . | . . . . . . . Disarmed . | . . . . . . . Reprogrammed . | . . . . . . . Reused . | . . . . . . . Traps Extracted . | . . . . . . . Installed . | . . . . . . . Triggered . | . . . . . . . Machines | -11 -10 -10 -9 -9 -7 -6 ---------- Run | Yrd Mat Min Mat Min Zio Pro Machines Disabled 1 | . 1 . . . . . Max in Single Turn 1 | . 1 . . . . . Machines Repaired . | . . . . . . . Machines Dismantled . | . . . . . . . Machines Sabotaged . | . . . . . . . Overloaded Fab Kills . | . . . . . . . Hacking | -11 -10 -10 -9 -9 -7 -6 --------- Run | Yrd Mat Min Mat Min Zio Pro Machines Accessed 7 | . 5 1 1 . . . Terminals 5 | . 4 . 1 . . . Fabricators . | . . . . . . . Repair Stations . | . . . . . . . Recycling Units 1 | . 1 . . . . . Scanalyzers . | . . . . . . . Garrison Access . | . . . . . . . Total Hacks 15 | . 13 1 1 . . . Successful 6 | . 4 1 1 . . . Failed 9 | . 9 . . . . . Catastrophic 1 | . 1 . . . . . Database Lockouts . | . . . . . . . Manual 7 | . 5 . . . 2 . Terminals 11 | . 10 . 1 . . . Fabricators . | . . . . . . . Repair Stations . | . . . . . . . Recycling Units 3 | . 3 . . . . . Scanalyzers . | . . . . . . . Garrison Access . | . . . . . . . Terminal Hacks 5 | . 3 1 1 . . . Prototype ID Bank 1 | . . . 1 . . . Open Door 1 | . . 1 . . . . Alert Level 1 | . 1 . . . . . Hauler Manifests 1 | . 1 . . . . . Zone Layout 1 | . 1 . . . . . Fabricator Hacks . | . . . . . . . Repair Station Hacks . | . . . . . . . Recycling Unit Hacks 1 | . 1 . . . . . Process 1 | . 1 . . . . . Scanalyzer . | . . . . . . . Garrison Access Hacks . | . . . . . . . Unauthorized Hacks . | . . . . . . . Terminals . | . . . . . . . Fabricators . | . . . . . . . Repair Stations . | . . . . . . . Recycling Units . | . . . . . . . Scanalyzers . | . . . . . . . Garrison Access . | . . . . . . . Data Cores Recovered . | . . . . . . . Used . | . . . . . . . Hacking Detections 4 | . 3 . 1 . . . Full Trace Events . | . . . . . . . Feedback Events . | . . . . . . . Feedback Blocked . | . . . . . . . Robot Schematics Acquired . | . . . . . . . Robots Built . | . . . . . . . Authchips . | . . . . . . . Time . | . . . . . . . Total Robot Build Rating . | . . . . . . . Part Schematics Acquired . | . . . . . . . Parts Built . | . . . . . . . Authchips . | . . . . . . . Time . | . . . . . . . Total Part Build Rating . | . . . . . . . Parts Repaired . | . . . . . . . Time . | . . . . . . . Parts Recycled . | . . . . . . . Recycled Matter 13 | . 13 . . . . . Retrieved Matter . | . . . . . . . Retrieved Components . | . . . . . . . Parts Scanalyzed . | . . . . . . . Part Schematics Acquired . | . . . . . . . Parts Damaged . | . . . . . . . Bothacking | -11 -10 -10 -9 -9 -7 -6 ------------ Run | Yrd Mat Min Mat Min Zio Pro Used RIF Installer . | . . . . . . . Robots Hacked 2 | . . . 2 . . . Non-combat 2 | . . . 2 . . . Combat . | . . . . . . . Robot Hacks Applied 2 | . . . 2 . . . parse_system 1 | . . . 1 . . . no_distress 1 | . . . 1 . . . Relay Couplers Released . | . . . . . . . Fabnet Peak Effective % . | . . . . . . . Robots Rewired . | . . . . . . . Allies Hacked . | . . . . . . . Hacks Repelled . | . . . . . . . Allies | -11 -10 -10 -9 -9 -7 -6 -------- Run | Yrd Mat Min Mat Min Zio Pro Total Allies 8 | . . . . 4 4 . Largest Group 7 | . . . . 4 7 1 Highest-Rated Group 188 | . . . . 71 188 34 Highest-Rated Ally 38 | . . . . 31 38 34 Total Orders . | . . . . . . . Ally Attacks 6 | . . . . . 6 . Total Damage 70 | . . . . . 70 . Kills . | . . . . . . . Allies Corrupted . | . . . . . . . Allies Melted . | . . . . . . . Intel | -11 -10 -10 -9 -9 -7 -6 ------- Run | Yrd Mat Min Mat Min Zio Pro Active Infowar (turns) 1123 | . 309 340 474 . . . Sensors 947 | . 133 340 474 . . . Terrain 176 | . 176 . . . . . Robot Analysis Total . | . . . . . . . Derelict Logs Recovered 4 | . . . . 1 1 2 Drone Launches 1 | . . . . . 1 . Drone Recoveries 1 | . . . . . 1 . Exploration | -11 -10 -10 -9 -9 -7 -6 ------------- Run | Yrd Mat Min Mat Min Zio Pro Turns Passed 3621 | 63 689 452 547 128 1266 476 Spaces Moved 2371 | 38 373 267 294 97 962 340 Core 39 | 38 1 . . . . . Treads 875 | . 372 267 236 . . . Legs 1457 | . . . 58 97 962 340 Wheels . | . . . . . . . Hover . | . . . . . . . Flight . | . . . . . . . Fastest Speed 50 | 50 160 160 130 130 125 125 Average Speed 140 | 136 160 160 154 130 129 125 Slowest Speed 200 | 200 200 160 200 130 130 130 Overloaded Moves . | . . . . . . . Propulsion Burnouts . | . . . . . . . Robots Hopped . | . . . . . . . Potential Cave-ins . | . . . . . . . Cave-ins Triggered . | . . . . . . . Exploration Rate (%) 37 | 4 41 59 14 24 78 42 Regions Visited 6 Branch Regions 4 Pre-discovered Areas 2 | . . . . 1 . 1 Known Exits Taken 5 | . 1 1 1 1 1 . Unknown Exits Taken 1 | 1 . . . . . . Scrap Searched 11 | . . 2 . 1 5 3 Spaces Dug . | . . . . . . . Terrain Destroyed 55 | . 8 37 10 . . . Melee . | . . . . . . . Projectile . | . . . . . . . AOE 55 | . 8 37 10 . . . Terrain Rammed . | . . . . . . . Walls Destroyed . | . . . . . . . Machines Disabled . | . . . . . . . Actions | -11 -10 -10 -9 -9 -7 -6 --------- Run | Yrd Mat Min Mat Min Zio Pro Total 2604 | 48 461 280 361 99 984 371 Wait 74 | . 64 1 8 . 1 . Move 2365 | 37 372 266 293 96 961 340 Hop . | . . . . . . . Pick Up 32 | 6 7 1 9 1 6 2 Fast Attach 18 | 3 2 1 8 . 4 . Attach 8 | 1 2 . 2 . . 3 Detach 3 | . 1 1 1 . . . Swap 19 | 1 4 2 7 1 1 3 Drop 36 | . 6 2 15 1 10 2 Fire 43 | . 3 6 15 . 1 18 Melee 3 | . . . 3 . . . Ram . | . . . . . . . Kick 3 | . . . . . . 3 Crush . | . . . . . . . Escape Stasis . | . . . . . . . Rewire . | . . . . . . . Trap . | . . . . . . . Miscellaneous . | . . . . . . . Route ------- -11/Scrapyard -10/Materials (discovered 2 exits: Mat / *Min) -10/Mines (discovered 2 exits: *Mat x2) -9/Materials -9/Mines -7/Zion -6/Proximity Caves History --------- Turn | Location | Event 29 | -11/Scrapyard | Discovered new exit (range 15) 64 | -11/Scrapyard | Entered Materials 306 | -10/Materials | Build established: Mutant 458 | -10/Materials | Discovered new exit (range 8) 458 | -10/Materials | Discovered new exit (range 17) 654 | -10/Materials | Identified exit to Mines 753 | -10/Materials | Entered Mines 838 | -10/Mines | Discovered new exit (range 7) 875 | -10/Mines | Identified exit to Materials 885 | -10/Mines | Discovered exit to Materials (range 9) 1077 | -10/Mines | Met a Derelict who couldn't figure out how to use a Trap Extractor 1205 | -10/Mines | Entered Materials 1205 | -9/Materials | Evolved 2 slots: Power x1, Utility x1 1674 | -9/Materials | Discovered new exit (range 12) 1720 | -9/Materials | Identified exit to Mines 1752 | -9/Materials | Entered Mines 1755 | -9/Mines | Received a Mining Laser from a helpful Derelict 1793 | -9/Mines | Assisted by bots powering up and referring to "LRC-V3" 1811 | -9/Mines | Met a Derelict bent on vengeance 1824 | -9/Mines | Learned location of Zion (-7) 1871 | -9/Mines | A Derelict revealed a hidden shortcut to a safe place 1875 | -9/Mines | Identified exit to Zion 1880 | -9/Mines | Entered Zion 1880 | -7/Zion | Accompanied by 4 allies 2184 | -7/Zion | Met Imprinter 2214 | -7/Zion | Imprinted 2216 | -7/Zion | Declared Zion's savior 2842 | -7/Zion | Given the Hacking Drone Bay 2846 | -7/Zion | Found Prototype Device 2847 | -7/Zion | Identified Hacking Drone Bay 3082 | -7/Zion | Found GAL Module 3093 | -7/Zion | Discovered new exit (range 12) 3144 | -7/Zion | Identified exit to Proximity Caves 3146 | -7/Zion | Entered Proximity Caves 3146 | -6/Proximity Caves | Accompanied by 1 ally 3464 | -6/Proximity Caves | Learned location of Extension (-6) 3484 | -6/Proximity Caves | Learned location of 1 exit from Factory 3516 | -6/Proximity Caves | Received a Behemoth hack from an annoying Tinkerer 3532 | -6/Proximity Caves | Build established: Hacker-Mutant 3555 | -6/Proximity Caves | Spotted B-75 Beast 3594 | -6/Proximity Caves | Core integrity fell below 50% 3613 | -6/Proximity Caves | Core integrity fell below 20% 3622 | -6/Proximity Caves | Destroyed by B-75 Beast with Magnetic Acceleration Cannon Last Messages --------------- GQ-Z6O(c): "Anyway, see you later!" GQ-Z6O(c): "Oh wait, I forgot to tell you what it does." Mak. Shrapnel Gun destroyed. GQ-Z6O(c): "It's a hack that will make a Behemoth FRIENDLY! If you can believe that." Datajack destroyed. Ion Engine destroyed. Lgt. Antimatter Reactor destroyed. Discarded Hacking Suite. GQ-Z6O(c) destroyed. S-27 Virus destroyed. Lgt. Nuclear Core fries itself beyond repair. Knocked back. Autogun fries itself beyond repair. Titanium Leg destroyed. Myomer Leg destroyed. Kicked S-27 Virus. Kicked S-27 Virus out of the way. Kicked S-27 Virus. Map ----- +----------------------------------------------------+ | ?????????????????????????????????????????????????? | | ?????????????????????????????????????????????????? | | ?????????????????????????????????????????????????? | | ?????????????????????????????????????????????????? | | ?????????????????????????????????????????????????? | | ?????????????????????????????????????????????????? | | ?????????????????????????????????????????????????? | | ?????????????????????????????????????????????????? | | ?????????????????????????????????????????????????? | | ?????????????????????????????????????????????????? | | ?????????????????????????????????????????????????? | | ????????????????????? ??????? ???????????????????? | | ?????????????????? ##???? #??????????????????? | | ?????????????????? #??? #??????????????????? | | ??????????????? ? #?? ???????????????????? | | ???????????????? ? ## ???????????????????? | | ????????????????? " ???????????????????? | | ??????????????? " ????????????????????? | | ??????????????? " " ????????????????????? | | ??????????????? """ #?????????#??????????? | | ??????????????? ##??##### ??????????? | | ??????????????" s ### ?????????? | | ??????????????" """" ?????????? | | ???????????? """" #?????????? | | ?????????????"" % #?????????? | | ???????????? " @s #???????????????? | | ???????????? " "" ##???????????????? | | ???????????? " ##??????????? ????? | | ??????????? " #??????????? #??? | | ??????????? #??????????? #??? | | ???????????# ### % #?????????? ?? | | ???????????# ????### #????????? ?? | | ????????????#????????## % #???????? ? | | ???????????????????#### ###???????? ? | | ???????????????????# ;;????????? ? | | ???????????????????## ; ###????? | | ????????##??????????#####; ;;;!##??? # | | ???????? ??????###???? ; = % #??# # | | ????????# ?????## ##??### %BB!###" ? | | ????????# ????## ##???# [ #???????? | | ???????# ???## #???# %! ##???????? | | ??????## ???# #??## ###" ##????????? | | ?????## #??# #?### #??? #?????????? | | ????## ##?# #?## ##???? #?????????? | | ????# ### #### #??????#?????????? | | ##???# #????????????????? | | #???## #?????????? | | #????# #### ## #?????????? | | ????# ##??# #############?????????? | | ?????## #???## #?????????????????????? | +----------------------------------------------------+ Best States ------------- Heat Dissipation 28 Energy Generation 26 Energy Capacity 320 Matter Stores 300 Matter Capacity 300 Sight Range 16 Robot Scan Range 14 Terrain Scan Range 14 Terrain Scan Density 10 Armor Coverage 150 Evasion (%) 55 Recoil Reduction 2 Offensive Hacking 21 Authchip Count 1 Item Schematics ----------------- None Robot Schematics ------------------ None Fabricated ------------ Nothing Repaired ---------- Nothing Alien Tech Used ----------------- None Achievements -------------- None Challenges ------------ None Game ------ Seed PitchforkTrapMeganuke Manual? 0 Play Time 00:47:42 Cumulative 11.2 hours Start 2025.08.30 @ 15:33:52 End 2025.08.30 @ 16:22:22 Sessions 1 Manual Loads 0 Difficulty Rogue Special Mode None Game No. 24 Rogue 23 Adventurer 1 Explorer 0 Win Type - Total 0 Types 0/0/0/0/0/0/0/0/0/0 Lore% 5 Gallery% 15 Achievement% 17 Wizard Run 0 Options --------- Layout 1 ASCII 0 Keyboard 0 Movement Numpad Keybinds 0 Fullscreen 1 Font 24/Smallcaps Map View 50x35 Zoom Use 0% Tactical HUD 0 Map Filters NONE Filters NONE Steam 1 RUN: 71db0b70-7568-40e5-adaa-3b9b58b19323